Cogmind - Beta 16.1 @@@ ROGUE MODE // 2026.05.03 @ 04:32:04 Player: KURIIRI Result: Self-destructed Performance ------------- Evolutions (0) 0 Regions Visited (3) 600 Robots Destroyed (30) 150 Value Destroyed (807) 807 Prototype IDs (16) 320 Alien Tech Used (0) 0 Bonus (-102) -102 TOTAL SCORE: 1775 Bonus ------- Friendly Fire -102 Cogmind --------- Core Integrity 54/250 Matter 300/300 Energy 250/250 System Corruption 0% Temperature Cool (0) Movement Treading (160) Location -8/Scraptown Parts ------- > --- POWER (1) -------- Ion Engine > --- PROPULSION (2) --- Improved Treads Spiked Treads > --- UTILITY (2) ------ Large Storage Unit > --- WEAPON (2) ------- Subdweller Laser Beam Cannon > --- INVENTORY (15) --- Light Treads Light Treads Improved Treads Improved Treads Wheel Improved Heat Sink Large Matter Pod (150) Makeshift Light Armor Plating Gun Armor Hacking Suite Subdweller Laser Beam Cannon Subdweller Shrapnel Launcher Datajack Peak State ------------ > --- POWER ------------ Ion Engine > --- PROPULSION ------- Improved Treads Improved Treads > --- UTILITY ---------- Large Storage Unit Makeshift Light Armor Plating > --- WEAPON ----------- Subdweller Laser Subdweller Beam Cannon > --- INVENTORY -------- Light Treads Light Treads Light Treads Improved Treads Wheel Improved Heat Sink Large Matter Pod Improved Terrain Scanner Hacking Suite Beam Cannon Beam Cannon Beam Cannon Subdweller Shrapnel Launcher Datajack [Rating: 16] Favorites ----------- Power Ion Engine Engine Ion Engine Propulsion Improved Treads Treads Improved Treads Leg Aluminum Leg Wheel Wheel Utility Large Storage Unit Device Improved Terrain Scanner Storage Large Storage Unit Protection Light Armor Plating Weapon Beam Cannon Energy Gun EM Pulse Gun Energy Cannon Beam Cannon Ballistic Gun Subdweller Machine Gun Launcher Subdweller Shrapnel Launcher Special Melee Weapon Datajack Build | -11 -10 -10 -8 ------- Run | Yrd Mat Sub Scr Slots Evolved . | . . . . Power . | . . . . Propulsion . | . . . . Utility . | . . . . Weapon . | . . . . Parts Attached 26 | 3 13 10 . Power 1 | . . 1 . Engine 1 | . . 1 . Core . | . . . . Reactor . | . . . . Propulsion 7 | 2 4 1 . Treads 6 | 2 3 1 . Leg . | . . . . Wheel 1 | . 1 . . Hover . | . . . . Flight . | . . . . Utility 5 | 1 3 1 . Device 1 | 1 . . . Storage 2 | . 2 . . Processor . | . . . . Hackware . | . . . . Protection 2 | . 1 1 . Artifact . | . . . . Weapon 13 | . 6 7 . Energy Gun 5 | . 2 3 . Energy Cannon 4 | . 2 2 . Ballistic Gun 2 | . 1 1 . Ballistic Cannon . | . . . . Launcher 1 | . . 1 . Special Weapon . | . . . . Impact Weapon . | . . . . Slashing Weapon . | . . . . Piercing Weapon . | . . . . Special Melee Weapon 1 | . 1 . . Unidentified Prototypes 1 | . 1 . . Parts Lost 3 | . . 3 . Power 1 | . . 1 . Propulsion . | . . . . Utility 2 | . . 2 . Weapon . | . . . . Highest Loss Streak 1 | . . 1 . To Critical Strikes . | . . . . Average Backups 14 | 5 11 14 . Power . | 1 1 . . Propulsion 4 | 3 4 5 . Utility 3 | . 2 4 . Weapon 4 | 1 3 4 . Tool/Special . | . . . . Unused Backups 26 | . 13 5 8 Power 3 | . 2 1 . Propulsion 10 | . 5 1 4 Utility 6 | . 1 1 4 Weapon 7 | . 5 2 . Tool/Special . | . . . . Average Slot Usage (%) 98 | . 99 97 . Engine 13 | . 14 13 . Treads 27 | . 25 28 . Device 8 | . 8 8 . Storage 14 | . 14 14 . Protection 4 | . 5 4 . Energy Gun 5 | . 16 3 . Energy Cannon 19 | . 9 22 . Ballistic Gun 2 | . . 2 . Peak Build Rating 16 | 9 13 16 . Average Rating 12 | 7 9 13 . On Entrance 9 | 6 9 11 12 Avg Prop Armor Cover (%) 11 | . 11 . . Naked Turns . | . . . . Heaviest Build 41 | 14 34 41 . Greatest Support 46 | 40 46 46 . Greatest Overweight (x) 1 | . 1 . . Average Overweight (x) . | . . . . Largest Inventory Capacity 15 | 8 15 15 . Average Capacity 14 | 8 11 15 . Most Carried 15 | 7 15 15 . Average Carried 14 | 6 11 14 . Final Capacity 15 | 8 15 15 15 Final Carried 15 | 5 15 14 14 Class Distribution -------------------- 100% | Mutant Dominant Class ---------------- Mutant | -10/Materials Mutant | -10/Subcaves Mutant | -8/Scraptown Resources | -11 -10 -10 -8 ----------- Run | Yrd Mat Sub Scr Matter Collected 917 | 233 273 411 . Remotely . | . . . . Salvage Created 1195 | 101 448 646 . Parts 73 | 8 25 40 . Haulers Intercepted 2 | . 2 . . Recyclers Shooed 3 | 1 2 . . Parts Field Recycled . | . . . . Retrieved Matter . | . . . . Parts Self-Destructed 19 | . . 19 . Prevented . | . . . . Parts Restored . | . . . . Kills | -11 -10 -10 -8 ------- Run | Yrd Mat Sub Scr Combat Hostiles Destroyed 21 | . 6 15 . Guns 4 | . 3 1 . Cannons 9 | . 2 7 . AOE 8 | . 1 7 . Classes Destroyed 11 | 2 6 3 . Builder 1 | . 1 . . Tunneler 2 | 1 1 . . Hauler 2 | . 2 . . Recycler 1 | 1 . . . Operator 1 | . 1 . . Turret 1 | . . 1 . Watcher 1 | . 1 . . Swarmer 4 | . 1 3 . Grunt 5 | . 5 . . Artisan 1 | . . 1 . Subdweller 12 | . . 12 . Best Kill Streak 5 | 2 3 5 . Combat Bots Only 5 | . 2 5 . Max Kills in Single Turn 2 | 1 2 2 . Gunslinging . | . . . . Exploded 2 | . 1 2 . Melee . | . . . . Uniques/NPCs Destroyed . | . . . . Combat | -11 -10 -10 -8 -------- Run | Yrd Mat Sub Scr Hostile Shots Fired 59 | . 14 45 . Missed 19 | . 5 14 . Hits 40 | . 9 31 . Projectile 40 | . 9 31 . Critical Strikes 1 | . 1 . . Damage Taken 801 | . 145 656 . Core 196 | . 25 171 . Absorbed by Shields . | . . . . Regen/Repaired (Parts) 27 | . 27 . . Core Remaining (%) 100 | 100 . . . Volleys Fired 110 | 3 21 86 . Largest 2 | 2 2 2 . Hottest 140 | 60 120 140 . Shots Fired 173 | 6 42 125 . Gun 65 | 6 38 21 . Cannon 99 | . 4 95 . Launcher 9 | . . 9 . Special . | . . . . Kinetic 20 | 3 . 17 . Thermal 112 | . 4 108 . Explosive . | . . . . Electromagnetic 41 | 3 38 . . Robot Hit Streak 23 | 2 5 23 . Robot Miss Streak 2 | 1 2 1 . Penetration Max . | . . . . Secondary Targets . | . . . . Shots Hit Robots 111 | 4 25 82 . Core Hits 50 | 3 18 29 . Critical Kills . | . . . . Critical Parts Destroyed 1 | 1 . . . Critical Strikes 1 | 1 . . . Destroy 1 | 1 . . . Melee Attacks . | . . . . Impact . | . . . . Slashing . | . . . . Piercing . | . . . . Sneak Attacks . | . . . . Combat Hostiles . | . . . . Follow-up Attacks . | . . . . Damage Inflicted 2713 | 37 581 2095 . Guns 522 | 37 336 149 . Cannons 1338 | . 54 1284 . Explosions 810 | . 148 662 . Melee . | . . . . Ramming 43 | . 43 . . Kinetic 684 | 22 . 662 . Thermal 1635 | . 202 1433 . Explosive . | . . . . Electromagnetic 351 | 15 336 . . Impact . | . . . . Slashing . | . . . . Piercing . | . . . . Highest Corruption . | . . . . Average Corruption . | . . . . Corruption Purged . | . . . . Corruption Blocked . | . . . . Overload Shots . | . . . . Overflow Damage 14 | . . 14 . Projectiles 14 | . . 14 . Explosions . | . . . . Melee . | . . . . Knockbacks . | . . . . Impact . | . . . . Kinetic . | . . . . Secondary . | . . . . Self-Inflicted Damage . | . . . . Shots . | . . . . Rammed 9 | . 9 . . Targets Rammed 9 | . 9 . . Kicked . | . . . . Crushed . | . . . . Highest Temperature 171 | 20 171 57 . Average Temperature 37 | 15 58 21 . Received Heat Transfer 282 | . 99 183 . Siege Activations . | . . . . Martial Activations . | . . . . Shielding Activations . | . . . . Robots Disrupted . | . . . . Combat Hostiles . | . . . . Robots Corrupted . | . . . . Combat Hostiles . | . . . . Parts Fried 2 | . 2 . . Impact Corruptions . | . . . . Robots Melted . | . . . . Combat Hostiles . | . . . . Parts Melted 5 | . . 5 . Heat Transferred 3076 | . 311 2765 . Parts Sabotaged . | . . . . Parts Stolen . | . . . . Parts Stripped . | . . . . Power Chain Reactions 2 | . 2 . . Alert | -11 -10 -10 -8 ------- Run | Yrd Mat Sub Scr Maximum Alert Level . | . . . . Low Security (%) 100 | 100 100 . . Level 1 . | . . . . Level 2 . | . . . . Level 3 . | . . . . Level 4 . | . . . . Level 5 . | . . . . High Security . | . . . . Max Security . | . . . . Peak Influence 57 | 10 57 . . Initial . | . . . . Average 11 | 4 12 . . Influence Increases 442 | 10 267 165 . Destroy 0b10 Robot/C 200 | . 120 80 . Destroy 0b10 Robot/NC 40 | 10 30 . . Destroy Leader 56 | . 46 10 . Successful Hack 35 | . 35 . . Select Force Hacks 30 | . 30 . . Destroy Structure 6 | . 6 . . Lose Combat Pursuer 75 | . . 75 . Influence Decreases 442 | 10 267 105 60 Entered New Map 60 | . . . 60 Time Decay 372 | 10 267 95 . Lost Part 10 | . . 10 . Squads Dispatched 2 | . 2 . . Investigation 2 | . 2 . . Extermination . | . . . . Reinforcement . | . . . . Assault . | . . . . Garrison . | . . . . Intercept . | . . . . Searches Triggered . | . . . . Construction Impeded . | . . . . Haulers Reinforced . | . . . . Active Scanning Responses . | . . . . Cargo Convoy Interrupts . | . . . . Stealth | -11 -10 -10 -8 --------- Run | Yrd Mat Sub Scr Distress Signals 1 | . 1 . . Communications Jammed . | . . . . Distress Signals . | . . . . Times Spotted 35 | . 11 24 . Peak Tracking Total 6 | . 4 6 . Tactical Retreats 2 | . . 2 . Traps | -11 -10 -10 -8 ------- Run | Yrd Mat Sub Scr Traps Triggered 1 | . . 1 . Indirectly . | . . . . Trap Hack Attempts 42 | . 42 . . Triggered . | . . . . Disarmed 1 | . 1 . . Reprogrammed 5 | . 5 . . Reused . | . . . . Traps Extracted . | . . . . Installed . | . . . . Triggered . | . . . . Machines | -11 -10 -10 -8 ---------- Run | Yrd Mat Sub Scr Machines Disabled 3 | . . 3 . Max in Single Turn 1 | . . 1 . Machines Repaired . | . . . . Machines Dismantled . | . . . . Machines Sabotaged . | . . . . Overloaded Fab Kills . | . . . . Hacking | -11 -10 -10 -8 --------- Run | Yrd Mat Sub Scr Machines Accessed 12 | . 9 3 . Terminals 7 | . 7 . . Fabricators . | . . . . Repair Stations 1 | . 1 . . Recycling Units 1 | . 1 . . Scanalyzers . | . . . . Garrison Access . | . . . . Total Hacks 32 | . 26 6 . Successful 20 | . 14 6 . Failed 11 | . 11 . . Catastrophic . | . . . . Database Lockouts 1 | . 1 . . Manual 19 | . 19 . . Terminals 23 | . 23 . . Fabricators . | . . . . Repair Stations 2 | . 2 . . Recycling Units 1 | . 1 . . Scanalyzers . | . . . . Garrison Access . | . . . . Terminal Hacks 13 | . 7 6 . Record 4 | . . 4 . Robot Analysis 4 | . 4 . . Prototype ID Bank 1 | . 1 . . Open Door 1 | . . 1 . Terminal Index 1 | . 1 . . Zone Layout 1 | . 1 . . Proto ID Catalog 1 | . . 1 . Fabricator Hacks . | . . . . Repair Station Hacks 2 | . 2 . . Scan Component 1 | . 1 . . Repair 1 | . 1 . . Recycling Unit Hacks . | . . . . Scanalyzer . | . . . . Garrison Access Hacks . | . . . . Unauthorized Hacks 5 | . 5 . . Terminals 4 | . 4 . . Assimilate 1 | . 1 . . Botnet 2 | . 2 . . Operators 1 | . 1 . . Fabricators . | . . . . Repair Stations . | . . . . Recycling Units 1 | . 1 . . Tunnel 1 | . 1 . . Scanalyzers . | . . . . Garrison Access . | . . . . Data Cores Recovered 1 | . 1 . . Used . | . . . . Hacking Detections 8 | . 8 . . Full Trace Events . | . . . . Feedback Events . | . . . . Feedback Blocked . | . . . . Robot Schematics Acquired . | . . . . Robots Built . | . . . . Authchips . | . . . . Time . | . . . . Total Robot Build Rating . | . . . . Part Schematics Acquired . | . . . . Parts Built . | . . . . Authchips . | . . . . Time . | . . . . Total Part Build Rating . | . . . . Part Studies Acquired . | . . . . Parts Repaired 1 | . 1 . . Time 26 | . 26 . . Parts Recycled . | . . . . Recycled Matter . | . . . . Retrieved Matter . | . . . . Retrieved Components . | . . . . Parts Scanalyzed . | . . . . Part Schematics Acquired . | . . . . Parts Damaged . | . . . . Bothacking | -11 -10 -10 -8 ------------ Run | Yrd Mat Sub Scr Used RIF Installer . | . . . . Robots Hacked . | . . . . Non-combat . | . . . . Combat . | . . . . Robot Hacks Applied . | . . . . Relay Couplers Released . | . . . . Fabnet Peak Effective % . | . . . . Robots Rewired . | . . . . Allies Hacked . | . . . . Hacks Repelled . | . . . . Allies | -11 -10 -10 -8 -------- Run | Yrd Mat Sub Scr Total Allies . | . . . . Largest Group . | . . . . Highest-Rated Group . | . . . . Highest-Rated Ally . | . . . . Total Orders . | . . . . Ally Attacks . | . . . . Total Damage . | . . . . Kills . | . . . . Allies Corrupted . | . . . . Allies Melted . | . . . . Intel | -11 -10 -10 -8 ------- Run | Yrd Mat Sub Scr Active Infowar (turns) 4576 | 20 795 3761 . Terrain 4576 | 20 795 3761 . Robot Analysis Total 4 | . 4 . . Derelict Logs Recovered 2 | . . 2 . Drone Launches . | . . . . Drone Recoveries . | . . . . Exploration | -11 -10 -10 -8 ------------- Run | Yrd Mat Sub Scr Turns Passed 7855 | 33 1381 6441 . Spaces Moved 3389 | 16 806 2567 . Core . | . . . . Treads 3130 | 3 560 2567 . Legs 13 | 13 . . . Wheels 246 | . 246 . . Hover . | . . . . Flight . | . . . . Fastest Speed 95 | 120 95 160 . Average Speed 155 | 127 140 160 . Slowest Speed 160 | 160 160 160 . Overloaded Moves . | . . . . Propulsion Burnouts . | . . . . Robots Hopped . | . . . . Potential Cave-ins . | . . . . Cave-ins Triggered . | . . . . Exploration Rate (%) 63 | 3 93 95 . Regions Visited 3 Branch Regions 2 Pre-discovered Areas 3 | . 1 2 . Known Exits Taken . | . . . . Unknown Exits Taken 3 | 1 1 1 . Scrap Searched 9 | . . 9 . Spaces Dug 9 | . . 9 . Terrain Destroyed 133 | . 6 127 . Melee . | . . . . Projectile 2 | . . 2 . AOE 131 | . 6 125 . Terrain Rammed . | . . . . Walls Destroyed . | . . . . Machines Disabled . | . . . . Actions | -11 -10 -10 -8 --------- Run | Yrd Mat Sub Scr Total 5812 | 24 1019 4769 . Wait 2157 | . 80 2077 . Move 3386 | 15 805 2566 . Hop . | . . . . Pick Up 34 | 1 25 8 . Fast Attach 6 | 1 4 1 . Attach 4 | 2 . 2 . Detach 1 | . . 1 . Swap 30 | . 11 19 . Drop 33 | 2 22 9 . Fire 110 | 3 21 86 . Melee . | . . . . Ram . | . . . . Kick . | . . . . Crush 9 | . 9 . . Escape Stasis . | . . . . Rewire . | . . . . Trap 42 | . 42 . . Miscellaneous . | . . . . Route ------- -11/Scrapyard -10/Materials (discovered 5 exits: [*Mat x3] / [*Min] / *Sub) -10/Subcaves (discovered 4 exits: *Mat x2 / [*Rec] / [*Scr]) -8/Scraptown History --------- Turn | Location | Event 10 | -11/Scrapyard | Discovered new exit (range 3) 34 | -11/Scrapyard | Entered Materials 35 | -10/Materials | Met a group of wandering Federalists 130 | -10/Materials | Discovered new exit (range 16) 150 | -10/Materials | Discovered new exit (range 9) 333 | -10/Materials | Build established: Mutant 593 | -10/Materials | Central database locked down 660 | -10/Materials | Discovered new exit (range 16) 869 | -10/Materials | Repaired EM Pulse Gun 933 | -10/Materials | Discovered new exit (range 13) 1103 | -10/Materials | Discovered new exit (range 15) 1415 | -10/Materials | Entered Subcaves 1416 | -10/Subcaves | Continued accompanying wandering Federalists (6) 1416 | -10/Subcaves | Approached by a straggling Scientist 1434 | -10/Subcaves | Discovered new exit (range 16) 1520 | -10/Subcaves | Lost 6 allies 1738 | -10/Subcaves | Identified exit to Materials 2533 | -10/Subcaves | Disturbed a concealed Subdweller 2545 | -10/Subcaves | Core integrity fell below 50% 3004 | -10/Subcaves | Visited 4L-MR0's lab 3112 | -10/Subcaves | Learned location of Zion (-7) 3112 | -10/Subcaves | Met a Zionite searching for "candidates" 3651 | -10/Subcaves | Discovered exit to Materials (range 16) 3656 | -10/Subcaves | Shifting Twisted Machinery released Barrage Gun 3660 | -10/Subcaves | Shifting Twisted Machinery released Flamer 3703 | -10/Subcaves | Visited Clippyterm 3707 | -10/Subcaves | Learned location of Deep Caves (-7) 7241 | -10/Subcaves | Ambushed by Subdweller buried in earth 7245 | -10/Subcaves | Ambushed by Subdweller buried in earth 7763 | -10/Subcaves | Found Gun Armor 7856 | -10/Subcaves | Entered Scraptown 7856 | -8/Scraptown | Self-destructed Last Messages --------------- 07281_ The unstable cave ceiling collapses. 07425_ Acquired 9 matter. 07539_ Acquired 3 matter. 07563_ Acquired 16 matter. 07704_ Acquired 33 matter. 07726_ Sub. Beam Cannon shoots sparks and powers down. 07731_ Destroyed Wheel. 07733_ Machine disabled. 07735_ Sub. Laser shoots sparks and powers down. 07740_ 4L-MR0 cries out in pain. 07740_ 4L-MR0 destroyed. 07740_ Machine disabled. 07757_ Testing Chamber breached. 07762_ Dropped Beam Cannon. 07763_ Dropped Broken Sub. Beam Cannon. 07763_ Acquired Gun Armor. 07836_ Acquired 51 matter. LOCATION=UNKNOWN GOAL=ESCAPE Map ----- +----------------------------------------------------+ | ?????????????????????????????????????????????????? | | ?????????????????????????????????????????????????? | | ?????????????????????????????????????????????????? | | ?????????????????????????????????????????????????? | | ?????????????????????????????????????????????????? | | ?????????????????????????????????????????????????? | | ?????????????????????????????????????????????????? | | ?????????????????????????????????????????????????? | | ?????????????????????????????????????????????????? | | ?????????????????????????????????????????????????? | | ?????????????????????????????????????????????????? | | ?????????????????????????????????????????????????? | | ?????????????????????????????????????????????????? | | ?????????????????????????????????????????????????? | | ?????????????????????????????????????????????????? | | ?????????????????????????????????????????????????? | | ?????????????????????????????????????????????????? | | ?????????????????????????????????????????????????? | | ?????????????????????????????????????????????????? | | ?????????????????????????????????????????????????? | | ?????????????????????????????????????????????????? | | ?????????????????????????????????????????????????? | | ???????????????????????#####?????????????????????? | | ???????????????????????#"""#?????????????????????? | | ???????????????????????#" "#?????????????????????? | | ???????????????????????# @ #?????????????????????? | | ???????????????????????# #?????????????????????? | | ???????????????????????# ????????????????????? | | ???????????????????????# ???????????????????? | | ???????????????????????# ??????????????????? | | ???????????????????????##### ##?????????????????? | | ???????????????????????????? #??????????????????? | | ????????????????????????????? #??????????????????? | | ????????????????????????????? "??????????????????? | | ??????????????????????????????" ?????????????????? | | ?????????????????????????????? ?????????????????? | | ???????????????????????????????"?????????????????? | | ?????????????????????????????????????????????????? | | ?????????????????????????????????????????????????? | | ?????????????????????????????????????????????????? | | ?????????????????????????????????????????????????? | | ?????????????????????????????????????????????????? | | ?????????????????????????????????????????????????? | | ?????????????????????????????????????????????????? | | ?????????????????????????????????????????????????? | | ?????????????????????????????????????????????????? | | ?????????????????????????????????????????????????? | | ?????????????????????????????????????????????????? | | | | | +----------------------------------------------------+ Best States ------------- Heat Dissipation 25 Energy Generation 10 Energy Capacity 250 Matter Stores 300 Matter Capacity 300 Sight Range 16 Terrain Scan Range 16 Terrain Scan Density 10 Armor Coverage 150 Evasion (%) 45 Recoil Reduction 2 Item Schematics ----------------- None Robot Schematics ------------------ None Fabricated ------------ Nothing Repaired ---------- EM Pulse Gun | 40% | -10/Materials Studied --------- None Alien Tech Used ----------------- None Achievements -------------- None Challenges ------------ None Game ------ Seed TimingStorageShielding Manual? 0 Play Time 00:25:26 Cumulative 440.0 hours Start 2026.05.03 @ 03:47:18 End 2026.05.03 @ 04:32:04 Sessions 1 Manual Loads 0 Difficulty Rogue Special Mode None Game No. 373 Rogue 337 Adventurer 36 Explorer 0 Win Type - Total 5 Types 2/0/0/1/0/0/0/2/0/0 Lore% 81 Gallery% 69 Achievement% 60 Wizard Run 0 Options --------- Layout 1 ASCII 0 Keyboard 0 Movement Numpad Keybinds 0 Fullscreen 1 Font 48/Smallcaps Map View 50x35 Zoom Use 0% Tactical HUD 1 Map Filters NONE Filters NONE Steam 1 RUN: 0fda1f31-7296-4a43-bd00-59c5b7ec5ac4